fUSD/lending_fUSD_20250308
["ID","MTS","AMOUNT","RATE_DAILY","PERIOD"]
[355671066,1741451432679,-860.34,8.219e-05,2]
[355671067,1741451432689,-500.0,8.219e-05,2]
[355671068,1741451432699,-500.0,8.219e-05,2]
[355671069,1741451432709,-500.0,8.219e-05,2]
[355671070,1741451432725,-1116.68,8.219e-05,2]
[355671071,1741451432736,-500.0,8.219e-05,2]
[355671072,1741451432745,-573.32,8.219e-05,2]
[355671073,1741451432754,-585.74,8.219e-05,2]
[355671074,1741451432764,-672.36,8.219e-05,2]
[355671075,1741451432773,-500.0,8.219e-05,2]
[355671076,1741451432783,-500.0,8.219e-05,2]
[355671077,1741451432792,-500.0,8.219e-05,2]
[355671078,1741451432802,-500.0,8.219e-05,2]
[355671079,1741451432811,-768.45,8.219e-05,2]
[355671080,1741451432820,-500.0,8.219e-05,2]
[355671081,1741451432830,-561.25,8.219e-05,2]
[355671082,1741451432840,-500.0,8.219e-05,2]
[355671083,1741451432849,-539.97,8.219e-05,2]
[355671084,1741451432859,-546.55,8.219e-05,2]
[355671085,1741451432869,-500.0,8.219e-05,2]
[355671086,1741451432879,-500.0,8.219e-05,2]
[355671087,1741451432888,-500.0,8.219e-05,2]
[355671088,1741451432897,-500.0,8.219e-05,2]
[355671089,1741451432907,-500.0,8.219e-05,2]
[355671090,1741451432917,-646.68,8.219e-05,2]
[355671092,1741451432926,-536.39,8.219e-05,2]
[355671094,1741451432936,-839.06,8.219e-05,2]
[355671096,1741451432945,-500.0,8.219e-05,2]
[355671098,1741451432955,-500.0,8.219e-05,2]
[355671100,1741451432964,-500.0,8.219e-05,2]
[355671102,1741451432973,-500.0,8.219e-05,2]
[355671104,1741451432983,-531.11,8.219e-05,2]
[355671106,1741451432991,-500.0,8.219e-05,2]
[355671108,1741451433000,-500.0,8.219e-05,2]
[355671110,1741451433010,-793.82,8.219e-05,2]
[355671112,1741451433020,-500.0,8.219e-05,2]
[355671114,1741451433029,-500.0,8.219e-05,2]
[355671116,1741451433039,-500.0,8.219e-05,2]
[355671118,1741451433049,-500.0,8.219e-05,2]
[355671120,1741451433058,-500.0,8.219e-05,2]
[355671122,1741451433067,-500.0,8.219e-05,2]
[355671124,1741451433077,-543.53,8.219e-05,2]
[355671126,1741451433087,-668.88,8.219e-05,2]
[355671128,1741451433097,-577.31,8.219e-05,2]
[355671130,1741451433107,-500.0,8.219e-05,2]
[355671132,1741451433117,-500.0,8.219e-05,2]
[355671134,1741451433126,-500.0,8.219e-05,2]
[355671136,1741451433136,-500.0,8.219e-05,2]
[355671138,1741451433147,-500.0,8.219e-05,2]
[355671140,1741451433157,-500.0,8.219e-05,2]
[355671142,1741451433167,-500.0,8.219e-05,2]
[355671144,1741451433177,-601.95,8.219e-05,2]
[355671146,1741451433187,-500.0,8.219e-05,2]
[355671148,1741451433197,-742.56,8.219e-05,2]
[355671150,1741451433206,-532.68,8.219e-05,2]
[355671152,1741451433216,-500.0,8.219e-05,2]
[355671154,1741451433225,-807.54,8.219e-05,2]
[355671156,1741451433235,-393.282689,8.219e-05,2]
[355671158,1741451433245,-500.0,8.219e-05,2]
[355671160,1741451433255,-922.48,8.219e-05,2]
[355671162,1741451433265,-552.31,8.219e-05,2]
[355671164,1741451433274,-199.89,8.219e-05,2]
[355671166,1741451433284,-585.707846,8.219e-05,2]
[355671168,1741451433294,-500.0,8.219e-05,2]
[355671170,1741451433303,-500.0,8.219e-05,2]
[355671172,1741451433312,-500.0,8.219e-05,2]
[355671174,1741451433322,-500.0,8.219e-05,2]
[355671176,1741451433331,-517.79,8.219e-05,2]
[355671178,1741451433341,-679.49,8.219e-05,2]
[355671180,1741451433350,-500.0,8.219e-05,2]
[355671182,1741451433361,-864.87,8.219e-05,2]
[355671184,1741451433372,-1001.97,8.219e-05,2]
[355671185,1741451433383,-500.0,8.219e-05,2]
[355671186,1741451433392,-500.0,8.219e-05,2]
[355671187,1741451433403,-567.04,8.219e-05,2]
[355671188,1741451433413,-500.0,8.219e-05,2]
[355671189,1741451433422,-834.37,8.219e-05,2]
[355671190,1741451433432,-500.0,8.219e-05,2]
[355671191,1741451433441,-500.0,8.219e-05,2]
[355671192,1741451433451,-860.21,8.219e-05,2]
[355671193,1741451433460,-1049.79,8.219e-05,2]
[355671194,1741451433470,-500.0,8.219e-05,2]
[355671195,1741451433479,-859.81,8.219e-05,2]
[355671196,1741451433489,-500.0,8.219e-05,2]
[355671197,1741451433499,-1000.46,8.219e-05,2]
[355671198,1741451433508,-500.0,8.219e-05,2]
[355671199,1741451433518,-608.51,8.219e-05,2]
[355671200,1741451433527,-500.0,8.219e-05,2]
[355671201,1741451433537,-500.0,8.219e-05,2]
[355671202,1741451433547,-1201.81,8.219e-05,2]
[355671203,1741451433556,-976.28,8.219e-05,2]
[355671204,1741451433566,-500.0,8.219e-05,2]
[355671205,1741451433576,-500.0,8.219e-05,2]
[355671206,1741451433585,-500.0,8.219e-05,2]
[355671207,1741451433595,-676.23,8.219e-05,2]
[355671208,1741451433604,-500.0,8.219e-05,2]
[355671209,1741451433615,-500.0,8.219e-05,2]
[355671210,1741451433625,-1192.68,8.219e-05,2]
[355671211,1741451433635,-528.52,8.219e-05,2]
[355671212,1741451433644,-500.0,8.219e-05,2]
[355671213,1741451433655,-500.0,8.219e-05,2]
[355671214,1741451433667,-500.0,8.219e-05,2]
[355671215,1741451433677,-500.0,8.219e-05,2]
[355671216,1741451433688,-628.26,8.219e-05,2]
[355671217,1741451433699,-972.3,8.219e-05,2]
[355671218,1741451433709,-1006.07,8.219e-05,2]
[355671219,1741451433720,-923.34,8.219e-05,2]
[355671220,1741451433730,-500.0,8.219e-05,2]
[355671221,1741451433739,-398.2134504,8.219e-05,2]
[355671222,1741451433750,-764.96,8.219e-05,2]
[355671223,1741451433760,-500.0,8.219e-05,2]
[355671224,1741451433770,-565.59,8.219e-05,2]
[355671225,1741451433780,-564.81,8.219e-05,2]
[355671226,1741451433790,-930.15,8.219e-05,2]
[355671227,1741451433800,-633.41,8.219e-05,2]
[355671228,1741451433811,-594.03,8.219e-05,2]
[355671229,1741451433820,-500.0,8.219e-05,2]
[355671230,1741451433830,-747.08,8.219e-05,2]
[355671231,1741451433840,-1121.78,8.219e-05,2]
[355671232,1741451433850,-864.36,8.219e-05,2]
[355671233,1741451433862,-500.0,8.219e-05,2]
[355671234,1741451433871,-500.0,8.219e-05,2]
[355671235,1741451433881,-773.96,8.219e-05,2]
[355671236,1741451433891,-9453.73,8.219e-05,2]
[355671237,1741451433902,-603.49,8.219e-05,2]
[355671238,1741451433911,-627.02,8.219e-05,2]
[355671239,1741451433922,-594.4,8.219e-05,2]
[355671240,1741451433933,-1209.92,8.219e-05,2]
[355671241,1741451433943,-4992.78,8.219e-05,2]
[355671242,1741451433953,-855.4,8.219e-05,2]
[355671243,1741451433963,-1003.48,8.219e-05,2]
[355671244,1741451433974,-1041.41,8.219e-05,2]
[355671245,1741451433984,-879.88,8.219e-05,2]
[355671246,1741451433994,-2121.73,8.219e-05,2]
[355671247,1741451434004,-1387.09,8.219e-05,2]
[355671248,1741451434014,-652.26,8.219e-05,2]
[355671249,1741451434024,-2387.01,8.219e-05,2]
[355671250,1741451434035,-644.99,8.219e-05,2]
[355671251,1741451434045,-2083.12,8.219e-05,2]
[355671252,1741451434055,-2225.22,8.219e-05,2]
[355671253,1741451434065,-500.0,8.219e-05,2]
[355671254,1741451434075,-1755.99,8.219e-05,2]
[355671255,1741451434085,-154.86641144,8.219e-05,2]
[355671256,1741451434095,-2411.52,8.219e-05,2]
[355671257,1741451434104,-500.0,8.219e-05,2]
[355671258,1741451434119,-1606.44,8.219e-05,2]
[355671259,1741451434130,-500.0,8.219e-05,2]
[355671260,1741451434140,-1898.02,8.219e-05,2]
[355671261,1741451434150,-1442.37,8.219e-05,2]
[355671262,1741451434159,-1615.13,8.219e-05,2]
[355671263,1741451434169,-786.54,8.219e-05,2]
[355671264,1741451434179,-1357.3,8.219e-05,2]
[355671265,1741451434189,-1347.66,8.219e-05,2]
[355671266,1741451434199,-1657.53,8.219e-05,2]
[355671267,1741451434211,-4139.0,8.219e-05,2]
[355671268,1741451434220,-500.0,8.219e-05,2]
[355671269,1741451434230,-631.73,8.219e-05,2]
[355671270,1741451434240,-785.85,8.219e-05,2]
[355671271,1741451434250,-1497.11,8.219e-05,2]
[355671272,1741451434259,-500.0,8.219e-05,2]
[355671273,1741451434269,-500.0,8.219e-05,2]
[355671274,1741451434279,-2769.7,8.219e-05,2]
[355671275,1741451434289,-2984.49,8.219e-05,2]
[355671276,1741451434300,-500.0,8.219e-05,2]
[355671277,1741451434310,-867.84,8.219e-05,2]
[355671278,1741451434320,-500.0,8.219e-05,2]
[355671279,1741451434331,-1313.55,8.219e-05,2]
[355671280,1741451434340,-2262.85,8.219e-05,2]
[355671281,1741451434351,-645.8936573,8.219e-05,2]
[355671282,1741451434364,-6133.09,8.219e-05,2]
[355671283,1741451434374,-1595.58,8.219e-05,2]
[355671284,1741451434384,-500.0,8.219e-05,2]
[355671285,1741451434396,-1157.52,8.219e-05,2]
[355671286,1741451434406,-5995.75,8.219e-05,2]
[355671287,1741451434416,-752.18,8.219e-05,2]
[355671288,1741451434426,-1037.89,8.219e-05,2]
[355671289,1741451434436,-1319.49,8.219e-05,2]
[355671290,1741451434445,-2879.6,8.219e-05,2]
[355671291,1741451434455,-6919.1,8.219e-05,2]
[355671292,1741451434465,-778.74,8.219e-05,2]
[355671293,1741451434475,-1075.32,8.219e-05,2]
[355671294,1741451434484,-1222.18,8.219e-05,2]
[355671295,1741451434494,-567.75,8.219e-05,2]
[355671296,1741451434503,-2235.53,8.219e-05,2]
[355671297,1741451434513,-572.79,8.219e-05,2]
[355671298,1741451434522,-2152.71,8.219e-05,2]
[355671299,1741451434532,-1166.49,8.219e-05,2]
[355671300,1741451434541,-500.0,8.219e-05,2]
[355671301,1741451434552,-872.98,8.219e-05,2]
[355671302,1741451434562,-2187.41,8.219e-05,2]
[355671303,1741451434571,-1382.87,8.219e-05,2]
[355671304,1741451434581,-747.04,8.219e-05,2]
[355671305,1741451434591,-500.0,8.219e-05,2]
[355671306,1741451434601,-1474.93,8.219e-05,2]
[355671307,1741451434612,-12011.57,8.219e-05,2]
[355671308,1741451434622,-604.0,8.219e-05,2]
[355671309,1741451434632,-2171.47,8.219e-05,2]
[355671310,1741451434641,-887.2,8.219e-05,2]
[355671311,1741451434651,-789.79,8.219e-05,2]
[355671312,1741451434663,-500.0,8.219e-05,2]
[355671313,1741451434675,-1286.66,8.219e-05,2]
[355671314,1741451434685,-2756.22,8.219e-05,2]
[355671315,1741451434695,-617.81911857,8.219e-05,2]
[355671316,1741451434706,-3089.68,8.219e-05,2]
[355671317,1741451434716,-1257.23,8.219e-05,2]
[355671318,1741451434726,-191.93906298,8.219e-05,2]
[355671319,1741451434736,-1805.35,8.219e-05,2]
[355671320,1741451434746,-1011.66,8.219e-05,2]
[355671321,1741451434756,-935.65,8.219e-05,2]
[355671322,1741451434766,-1306.31,8.219e-05,2]
[355671323,1741451435004,-2989.51,8.219e-05,2]
[355671324,1741451435056,-2233.02,8.219e-05,2]
[355671325,1741451435067,-689.64,8.219e-05,2]
[355671326,1741451435076,-1687.87,8.219e-05,2]
[355671327,1741451435086,-1722.74,8.219e-05,2]
[355671328,1741451435095,-500.0,8.219e-05,2]
[355671329,1741451435104,-723.51,8.219e-05,2]
[355671330,1741451435115,-721.1,8.219e-05,2]
[355671331,1741451435125,-1813.66,8.219e-05,2]
[355671332,1741451435134,-3122.98,8.219e-05,2]
[355671333,1741451435144,-500.0,8.219e-05,2]
[355671334,1741451435153,-3325.61,8.219e-05,2]
[355671335,1741451435163,-883.29,8.219e-05,2]
[355671336,1741451435172,-2528.21,8.219e-05,2]
[355671337,1741451435182,-913.18,8.219e-05,2]
[355671338,1741451435192,-500.0,8.219e-05,2]
[355671339,1741451435202,-620.61,8.219e-05,2]
[355671340,1741451435211,-1264.6,8.219e-05,2]
[355671341,1741451435221,-2830.5,8.219e-05,2]
[355671342,1741451435231,-2363.22,8.219e-05,2]
[355671343,1741451435240,-297.26594485,8.219e-05,2]
[355671344,1741451435249,-2773.87,8.219e-05,2]
[355671345,1741451435259,-2181.61,8.219e-05,2]
[355671346,1741451435269,-1413.01,8.219e-05,2]
[355671347,1741451435279,-6293.62,8.219e-05,2]
[355671348,1741451435288,-942.29,8.219e-05,2]
[355671349,1741451435297,-5945.69,8.219e-05,2]
[355671350,1741451435306,-1229.87,8.219e-05,2]
[355671351,1741451435315,-500.0,8.219e-05,2]
[355671352,1741451435324,-11444.74,8.219e-05,2]
[355671353,1741451435333,-1402.52,8.219e-05,2]
[355671354,1741451435342,-212.57,8.219e-05,2]
[355671355,1741451435351,-500.0,8.219e-05,2]
[355671356,1741451435360,-5476.0,8.219e-05,2]
[355671357,1741451435369,-5354.48,8.219e-05,2]
[355671358,1741451435378,-1510.82,8.219e-05,2]
[355671359,1741451435387,-610.59,8.219e-05,2]
[355671360,1741451435396,-295.07222755,8.219e-05,2]
[355671361,1741451435529,-204.92777245,8.219e-05,2]
[355671362,1741451435539,-276.43222755,8.219e-05,2]
[355671364,1741451438393,-169.67,8.211e-05,2]
[355671365,1741451438405,-223.56777245,8.219e-05,2]
[355671366,1741451438421,-470.80540755,8.219e-05,2]
[355671367,1741451438447,-282.76459245,8.219e-05,2]
[355671368,1741451438459,-524.69996812,8.219e-05,2]
[355671369,1741451438508,-272.0,8.219e-05,2]
[355671370,1741451438568,-2067.21978566,8.219e-05,2]
[355671541,1741451440329,-23652.89024622,8.219e-05,2]
[355671543,1741451440341,-3055.95,8.219e-05,2]
[355671545,1741451440353,-1942.47,8.219e-05,2]
[355671548,1741451440367,-5042.13,8.219e-05,2]
[355671550,1741451440379,-500.0,8.219e-05,2]
[355671552,1741451440391,-2040.87,8.219e-05,2]
[355671555,1741451440404,-555.17128761,8.219e-05,2]
[355671557,1741451440416,-500.0,8.219e-05,2]
[355671559,1741451440428,-1004.65,8.219e-05,2]
[355671561,1741451440440,-500.0,8.219e-05,2]
[355671564,1741451440452,-500.0,8.219e-05,2]
[355671566,1741451440464,-500.0,8.219e-05,2]
[355671568,1741451440476,-2132.5,8.219e-05,2]
[355671570,1741451440490,-715.95,8.219e-05,2]
[355671573,1741451440502,-500.0,8.219e-05,2]
[355671575,1741451440515,-500.0,8.219e-05,2]
[355671577,1741451440527,-1000.0,8.219e-05,2]
[355671580,1741451440539,-3834.2,8.219e-05,2]
[355671582,1741451440550,-1653.71,8.219e-05,2]
[355671584,1741451440563,-250.0,8.219e-05,2]
[355671586,1741451440576,-165.41,8.219e-05,2]
[355671589,1741451440588,-162.64,8.277e-05,2]
[355671591,1741451440601,-183.0,8.277e-05,2]
[355671593,1741451440613,-9999.99,8.392e-05,2]
[355671596,1741451440626,-8588.12,8.392e-05,2]
[355671598,1741451440639,-336.89,8.392e-05,2]
[355671600,1741451440651,-9999.99,8.392e-05,2]
[355671602,1741451440665,-1523.8,8.392e-05,2]
[355671605,1741451440679,-1453.5,8.392e-05,2]
[355671607,1741451440690,-470.85421543,8.442e-05,2]
[355671609,1741451440702,-150.99,8.442e-05,2]
[355671612,1741451440715,-150.99,8.442e-05,2]
[355671614,1741451440727,-997.47,8.467e-05,2]
[355671616,1741451440739,-500.0,8.492e-05,2]
[355671618,1741451440753,-500.0,8.492e-05,2]
[355671621,1741451440765,-500.0,8.492e-05,2]
[355671623,1741451440776,-500.0,8.492e-05,2]
[355671625,1741451440785,-500.0,8.492e-05,2]
[355671627,1741451440795,-500.0,8.492e-05,2]
[355671629,1741451440804,-500.0,8.492e-05,2]
[355671631,1741451440814,-500.0,8.492e-05,2]
[355671633,1741451440823,-500.0,8.492e-05,2]
[355671635,1741451440833,-500.0,8.492e-05,2]
[355671637,1741451440844,-500.0,8.492e-05,2]
[355671639,1741451440854,-500.0,8.492e-05,2]
[355671641,1741451440865,-500.0,8.492e-05,2]
[355671643,1741451440875,-500.0,8.492e-05,2]
[355671645,1741451440884,-501.68254505,8.492e-05,2]
[355671647,1741451440893,-500.0,8.492e-05,2]
[355671649,1741451440903,-500.0,8.492e-05,2]
[355671651,1741451440912,-500.0,8.492e-05,2]
[355671653,1741451440922,-500.0,8.492e-05,2]
[355671655,1741451440931,-500.0,8.492e-05,2]
[355671657,1741451440941,-500.0,8.492e-05,2]
[355671659,1741451440950,-500.0,8.492e-05,2]
[355671695,1741451440960,-500.0,8.492e-05,2]
[355671699,1741451441310,-500.0,8.492e-05,2]
[355671702,1741451441337,-500.0,8.492e-05,2]
[355671704,1741451441347,-500.0,8.492e-05,2]
[355671706,1741451441357,-516.04,8.492e-05,2]
[355671708,1741451441369,-500.0,8.492e-05,2]
[355671710,1741451441379,-500.0,8.492e-05,2]
[355671712,1741451441389,-516.47,8.492e-05,2]
[355671714,1741451441399,-500.0,8.492e-05,2]
[355671716,1741451441408,-500.0,8.492e-05,2]
[355671718,1741451441418,-515.54,8.492e-05,2]
[355671720,1741451441427,-500.0,8.492e-05,2]
[355671722,1741451441436,-500.0,8.492e-05,2]
[355671724,1741451441446,-511.44,8.492e-05,2]
[355671726,1741451441455,-500.0,8.492e-05,2]
[355671728,1741451441465,-500.0,8.492e-05,2]
[355671730,1741451441474,-500.0,8.492e-05,2]
[355671732,1741451441483,-500.0,8.492e-05,2]
[355671734,1741451441492,-500.0,8.492e-05,2]
[355671736,1741451441501,-500.0,8.492e-05,2]
[355671738,1741451441510,-500.0,8.492e-05,2]
[355671740,1741451441520,-500.0,8.492e-05,2]
[355671742,1741451441529,-500.0,8.492e-05,2]
[355671744,1741451441538,-500.0,8.492e-05,2]
[355671746,1741451441548,-500.0,8.492e-05,2]
[355671748,1741451441557,-500.0,8.492e-05,2]
[355671750,1741451441566,-503.04,8.492e-05,2]
[355671752,1741451441575,-500.0,8.492e-05,2]
[355671754,1741451441585,-500.0,8.492e-05,2]
[355671756,1741451441596,-500.0,8.492e-05,2]
[355671758,1741451441605,-500.0,8.492e-05,2]
[355671760,1741451441615,-500.0,8.492e-05,2]
[355671762,1741451441624,-500.0,8.492e-05,2]
[355671764,1741451441633,-500.0,8.492e-05,2]
[355671766,1741451441643,-500.0,8.492e-05,2]
[355671768,1741451441653,-574.49210668,8.492e-05,2]
[355671770,1741451441664,-500.0,8.492e-05,2]
[355671772,1741451441675,-500.0,8.492e-05,2]
[355671774,1741451441684,-500.0,8.492e-05,2]
[355671776,1741451441694,-500.0,8.492e-05,2]
[355671778,1741451441706,-500.0,8.492e-05,2]
[355671780,1741451441715,-500.0,8.492e-05,2]
[355671782,1741451441724,-500.0,8.492e-05,2]
[355671784,1741451441733,-500.0,8.492e-05,2]
[355671786,1741451441744,-500.0,8.492e-05,2]
[355671788,1741451441754,-500.0,8.492e-05,2]
[355671790,1741451441763,-500.0,8.492e-05,2]
[355671792,1741451441772,-507.26164729,8.492e-05,2]
[355671794,1741451441782,-1415.94,8.492e-05,2]
[355671796,1741451441791,-500.0,8.492e-05,2]
[355671798,1741451441800,-3456.85,8.492e-05,2]
[355671800,1741451441810,-18642.08,8.492e-05,2]
[355671802,1741451441819,-500.0,8.492e-05,2]
[355671804,1741451441828,-500.0,8.492e-05,2]
[355671806,1741451441837,-500.0,8.492e-05,2]
[355671808,1741451441846,-500.0,8.492e-05,2]
[355671810,1741451441856,-1926.7,8.492e-05,2]
[355671812,1741451441865,-500.0,8.492e-05,2]
[355671814,1741451441875,-500.0,8.492e-05,2]
[355671816,1741451441884,-1524.69,8.492e-05,2]
[355671818,1741451441893,-500.0,8.492e-05,2]
[355671819,1741451441902,-3210.16,8.492e-05,2]
[355671820,1741451441911,-1162.98,8.492e-05,2]
[355671821,1741451441920,-500.0,8.492e-05,2]
[355671822,1741451441929,-4438.78,8.492e-05,2]
[355671823,1741451441938,-500.0,8.492e-05,2]
[355671824,1741451441947,-500.0,8.492e-05,2]
[355671825,1741451441956,-3434.96,8.492e-05,2]
[355671826,1741451441965,-500.0,8.492e-05,2]
[355671827,1741451441974,-500.0,8.492e-05,2]
[355671828,1741451441983,-500.0,8.492e-05,2]
[355671829,1741451441992,-2478.27,8.492e-05,2]
[355671831,1741451442002,-500.0,8.492e-05,2]
[355671833,1741451442012,-500.0,8.492e-05,2]
[355671835,1741451442022,-597.79,8.492e-05,2]
[355671837,1741451442032,-500.0,8.492e-05,2]
[355671839,1741451442041,-500.0,8.492e-05,2]
[355671841,1741451442051,-3321.47,8.492e-05,2]
[355671843,1741451442060,-500.0,8.492e-05,2]
[355671845,1741451442070,-500.0,8.492e-05,2]
[355671847,1741451442079,-5913.05,8.492e-05,2]
[355671849,1741451442089,-500.0,8.492e-05,2]
[355671851,1741451442099,-500.0,8.492e-05,2]
[355671853,1741451442108,-2776.28,8.492e-05,2]
[355671855,1741451442119,-500.0,8.492e-05,2]
[355671857,1741451442128,-500.0,8.492e-05,2]
[355671859,1741451442137,-500.0,8.492e-05,2]
[355671861,1741451442147,-500.0,8.493e-05,2]
[355671863,1741451442158,-500.0,8.493e-05,2]
[355671865,1741451442169,-500.0,8.493e-05,2]
[355671867,1741451442179,-500.0,8.493e-05,2]
[355671869,1741451442188,-500.0,8.493e-05,2]
[355671871,1741451442198,-500.0,8.493e-05,2]
[355671873,1741451442207,-500.0,8.493e-05,2]
[355671875,1741451442225,-500.0,8.493e-05,2]
[355671877,1741451442234,-500.0,8.493e-05,2]
[355671879,1741451442244,-335.08089028,8.493e-05,2]
[355671881,1741451442253,-500.0,8.493e-05,2]
[355671883,1741451442262,-500.0,8.493e-05,2]
[355671885,1741451442272,-500.0,8.493e-05,2]
[355671887,1741451442283,-500.0,8.493e-05,2]
[355671889,1741451442292,-500.0,8.493e-05,2]
[355671891,1741451442301,-500.0,8.493e-05,2]
[355671893,1741451442310,-394.09024325,8.493e-05,2]
[355671895,1741451442319,-500.0,8.493e-05,2]
[355671897,1741451442328,-500.0,8.493e-05,2]
[355671899,1741451442337,-1116.68,8.493e-05,2]
[355671901,1741451442346,-500.0,8.493e-05,2]
[355671903,1741451442355,-573.32,8.493e-05,2]
[355671905,1741451442364,-585.74,8.493e-05,2]
[355671907,1741451442374,-672.36,8.493e-05,2]
[355671909,1741451442383,-500.0,8.493e-05,2]
[355671911,1741451442393,-500.0,8.493e-05,2]
[355671913,1741451442402,-500.0,8.493e-05,2]
[355671915,1741451442412,-500.0,8.493e-05,2]
[355671917,1741451442421,-768.45,8.493e-05,2]
[355671919,1741451442430,-500.0,8.493e-05,2]
[355671921,1741451442439,-561.25,8.493e-05,2]
[355671923,1741451442449,-500.0,8.493e-05,2]
[355671925,1741451442459,-539.97,8.493e-05,2]
[355671927,1741451442468,-546.55,8.493e-05,2]
[355671929,1741451442478,-500.0,8.493e-05,2]
[355671931,1741451442487,-500.0,8.493e-05,2]
[355671933,1741451442498,-500.0,8.493e-05,2]
[355671935,1741451442507,-646.68,8.493e-05,2]
[355671937,1741451442517,-536.39,8.493e-05,2]
[355671939,1741451442526,-839.06,8.493e-05,2]
[355671941,1741451442536,-500.0,8.493e-05,2]
[355671943,1741451442547,-500.0,8.493e-05,2]
[355671945,1741451442556,-500.0,8.493e-05,2]
[355671947,1741451442565,-500.0,8.493e-05,2]
[355671949,1741451442575,-531.11,8.493e-05,2]
[355671952,1741451442588,-500.0,8.493e-05,2]
[355671954,1741451442598,-500.0,8.493e-05,2]
[355671956,1741451442607,-793.82,8.493e-05,2]
[355671958,1741451442617,-500.0,8.493e-05,2]
[355671959,1741451442627,-500.0,8.493e-05,2]
[355671961,1741451442636,-500.0,8.493e-05,2]
[355671964,1741451442646,-500.0,8.493e-05,2]
[355671965,1741451442656,-500.0,8.493e-05,2]
[355671968,1741451442667,-500.0,8.493e-05,2]
[355671970,1741451442678,-543.53,8.493e-05,2]
[355671971,1741451442687,-668.88,8.493e-05,2]
[355671973,1741451442696,-577.31,8.493e-05,2]
[355671976,1741451442707,-500.0,8.493e-05,2]
[355671978,1741451442716,-500.0,8.493e-05,2]
[355671980,1741451442725,-500.0,8.493e-05,2]
[355671982,1741451442735,-500.0,8.493e-05,2]
[355671984,1741451442746,-500.0,8.493e-05,2]
[355671985,1741451442756,-500.0,8.493e-05,2]
[355671988,1741451442766,-500.0,8.493e-05,2]
[355671989,1741451442775,-601.95,8.493e-05,2]
[355671991,1741451442785,-500.0,8.493e-05,2]
[355671993,1741451442794,-742.56,8.493e-05,2]
[355671995,1741451442803,-532.68,8.493e-05,2]
[355671997,1741451442813,-500.0,8.493e-05,2]
[355671999,1741451442822,-807.54,8.493e-05,2]
[355672001,1741451442832,-393.282689,8.493e-05,2]
[355672004,1741451442841,-500.0,8.493e-05,2]
[355672005,1741451442851,-922.48,8.493e-05,2]
[355672007,1741451442860,-552.31,8.493e-05,2]
[355672009,1741451442869,-585.707846,8.493e-05,2]
[355672011,1741451442879,-500.0,8.493e-05,2]
[355672013,1741451442888,-500.0,8.493e-05,2]
[355672016,1741451442898,-679.49,8.493e-05,2]
[355672018,1741451442907,-500.0,8.493e-05,2]
[355672020,1741451442917,-864.87,8.493e-05,2]
[355672022,1741451442927,-1001.97,8.493e-05,2]
[355672024,1741451442936,-337.94,8.493e-05,2]
[355672026,1741451442945,-500.0,8.493e-05,2]
[355672027,1741451442955,-567.04,8.493e-05,2]
[355672029,1741451442964,-500.0,8.493e-05,2]
[355672031,1741451442974,-834.37,8.493e-05,2]
[355672033,1741451442983,-500.0,8.493e-05,2]
[355672036,1741451442993,-860.21,8.493e-05,2]
[355672038,1741451443002,-1049.79,8.493e-05,2]
[355672039,1741451443011,-500.0,8.493e-05,2]
[355672042,1741451443022,-859.81,8.493e-05,2]
[355672044,1741451443031,-500.0,8.493e-05,2]
[355672046,1741451443040,-1000.46,8.493e-05,2]
[355672048,1741451443049,-500.0,8.493e-05,2]
[355672050,1741451443059,-608.51,8.493e-05,2]
[355672052,1741451443068,-500.0,8.493e-05,2]
[355672054,1741451443078,-500.0,8.493e-05,2]
[355672056,1741451443087,-1201.81,8.493e-05,2]
[355672058,1741451443097,-976.28,8.493e-05,2]
[355672060,1741451443106,-500.0,8.493e-05,2]
[355672061,1741451443115,-500.0,8.493e-05,2]